[Event "Titled Tuesday Blitz June 13 Early 2023"]
[White "Mirzanurov, Bulat"]
[Black "Thecourseoisildur"]
[WhiteFideId "4184521"]
[WhiteElo "2005"]
[BlackElo "2580"]
[Result "0-1"]
[Round "1"]
[TimeControl "180+2"]
[Date "2023.06.13"]
[WhiteClock "0:00:00"]
[BlackClock "0:00:28"]
[Board "189"]

1. e4 {[%clk 0:03:00]}  c5 {[%clk 0:02:59]} 2. Nf3 {[%clk 0:02:59]}  d6 {[%clk 0:03:00]} 3. d4 {[%clk 0:02:59]}  cxd4 {[%clk 0:03:01]} 4. Nxd4 {[%clk 0:02:59]}  Nf6 {[%clk 0:03:01]} 5. Nc3 {[%clk 0:02:59]}  a6 {[%clk 0:03:02]} 6. f3 {[%clk 0:02:58]}  e5 {[%clk 0:03:02]} 7. Nb3 {[%clk 0:02:58]}  Be6 {[%clk 0:03:01]} 8. Be3 {[%clk 0:02:58]}  h5 {[%clk 0:03:01]} 9. Nd5 {[%clk 0:02:53]}  Bxd5 {[%clk 0:02:58]} 10. exd5 {[%clk 0:02:52]}  g6 {[%clk 0:02:58]} 11. Qd2 {[%clk 0:02:49]}  Bg7 {[%clk 0:02:56]} 12. Be2 {[%clk 0:02:45]}  Nbd7 {[%clk 0:02:55]} 13. O-O {[%clk 0:02:43]}  Qc7 {[%clk 0:02:53]} 14. Rac1 {[%clk 0:02:37]}  O-O {[%clk 0:02:49]} 15. c4 {[%clk 0:02:37]}  b6 {[%clk 0:02:48]} 16. Rfd1 {[%clk 0:02:34]}  a5 {[%clk 0:02:33]} 17. Qc2 {[%clk 0:02:21]}  Rae8 {[%clk 0:02:27]} 18. Nd2 {[%clk 0:02:18]}  Nc5 {[%clk 0:02:24]} 19. a3 {[%clk 0:02:13]}  e4 {[%clk 0:02:09]} 20. fxe4 {[%clk 0:02:10]}  Nfxe4 {[%clk 0:02:06]} 21. Nxe4 {[%clk 0:02:03]}  Rxe4 {[%clk 0:02:05]} 22. Bf2 {[%clk 0:01:50]}  a4 {[%clk 0:01:45]} 23. Kh1 {[%clk 0:01:40]}  Rfe8 {[%clk 0:01:32]} 24. Bf3 {[%clk 0:01:37]}  R4e7 {[%clk 0:01:31]} 25. Bxc5 {[%clk 0:01:22]}  Qxc5 {[%clk 0:01:32]} 26. Qd2 {[%clk 0:01:05]}  Kh7 {[%clk 0:01:22]} 27. Rb1 {[%clk 0:00:53]}  Bh6 {[%clk 0:01:17]} 28. Qc2 {[%clk 0:00:52]}  Qe3 {[%clk 0:01:13]} 29. Qc3 {[%clk 0:00:43]}  Qxc3 {[%clk 0:00:53]} 30. bxc3 {[%clk 0:00:43]}  Be3 {[%clk 0:00:54]} 31. g3 {[%clk 0:00:40]}  Bc5 {[%clk 0:00:53]} 32. Rd3 {[%clk 0:00:21]}  Re3 {[%clk 0:00:51]} 33. Rxe3 {[%clk 0:00:20]}  Rxe3 {[%clk 0:00:52]} 34. Bd1 {[%clk 0:00:20]}  Rxc3 {[%clk 0:00:48]} 35. Bxa4 {[%clk 0:00:19]}  Rxc4 {[%clk 0:00:49]} 36. Bb3 {[%clk 0:00:17]}  Rc3 {[%clk 0:00:48]} 37. a4 {[%clk 0:00:17]}  Kg7 {[%clk 0:00:37]} 38. Kg2 {[%clk 0:00:17]}  Kf6 {[%clk 0:00:37]} 39. Kf1 {[%clk 0:00:15]}  Ke5 {[%clk 0:00:36]} 40. Ke2 {[%clk 0:00:15]}  f5 {[%clk 0:00:34]} 41. Kd2 {[%clk 0:00:14]}  Kd4 {[%clk 0:00:31]} 42. Ba2 {[%clk 0:00:09]}  Rf3 {[%clk 0:00:30]} 43. Ke2 {[%clk 0:00:04]}  Ke4 {[%clk 0:00:28]} 44. Rb3 {[%clk 0:00:03]}  Rf2+ {[%clk 0:00:27]} 45. Ke1 {[%clk 0:00:00]}  Rxa2 {[%clk 0:00:28]} 0-1


[Site "https://www.chess.com"]

[Event "Titled Tuesday Blitz June 13 Early 2023"]
[White "Camilla_Lee"]
[Black "EdmundPlayer"]
[WhiteElo "2574"]
[BlackElo "2221"]
[Result "0-1"]
[Round "1"]
[TimeControl "180+2"]
[Date "2023.06.13"]
[WhiteClock "0:00:12"]
[BlackClock "0:00:14"]
[Board "192"]

1. e4 {[%clk 0:02:48]}  e6 {[%clk 0:02:56]} 2. d4 {[%clk 0:02:48]}  d5 {[%clk 0:02:55]} 3. Nc3 {[%clk 0:02:47]}  Bb4 {[%clk 0:02:52]} 4. exd5 {[%clk 0:02:41]}  exd5 {[%clk 0:02:51]} 5. Bd3 {[%clk 0:02:41]}  Nc6 {[%clk 0:02:34]} 6. Ne2 {[%clk 0:02:29]}  Nge7 {[%clk 0:02:27]} 7. O-O {[%clk 0:02:23]}  Bf5 {[%clk 0:02:24]} 8. a3 {[%clk 0:02:19]}  Bxd3 {[%clk 0:02:04]} 9. Qxd3 {[%clk 0:02:15]}  Bxc3 {[%clk 0:01:55]} 10. Nxc3 {[%clk 0:01:57]}  Qd7 {[%clk 0:01:53]} 11. Re1 {[%clk 0:01:49]}  O-O {[%clk 0:01:51]} 12. Bf4 {[%clk 0:01:42]}  a6 {[%clk 0:01:40]} 13. Rad1 {[%clk 0:01:30]}  Nf5 {[%clk 0:01:17]} 14. Ne2 {[%clk 0:01:07]}  Nce7 {[%clk 0:01:06]} 15. c3 {[%clk 0:00:57]}  c6 {[%clk 0:00:49]} 16. f3 {[%clk 0:00:43]}  Ng6 {[%clk 0:00:48]} 17. Bc1 {[%clk 0:00:40]}  Rfe8 {[%clk 0:00:47]} 18. Ng3 {[%clk 0:00:35]}  Nxg3 {[%clk 0:00:31]} 19. hxg3 {[%clk 0:00:36]}  Rxe1+ {[%clk 0:00:31]} 20. Rxe1 {[%clk 0:00:37]}  Re8 {[%clk 0:00:31]} 21. Kf2 {[%clk 0:00:37]}  Rxe1 {[%clk 0:00:30]} 22. Kxe1 {[%clk 0:00:37]}  Ne7 {[%clk 0:00:27]} 23. g4 {[%clk 0:00:37]}  Nc8 {[%clk 0:00:24]} 24. Bf4 {[%clk 0:00:33]}  Nb6 {[%clk 0:00:24]} 25. Qe2 {[%clk 0:00:20]}  Qe6 {[%clk 0:00:23]} 26. Qxe6 {[%clk 0:00:18]}  fxe6 {[%clk 0:00:24]} 27. Kd2 {[%clk 0:00:18]}  Nc4+ {[%clk 0:00:22]} 28. Kc2 {[%clk 0:00:19]}  Kf7 {[%clk 0:00:22]} 29. b3 {[%clk 0:00:19]}  Nxa3+ {[%clk 0:00:22]} 30. Kd3 {[%clk 0:00:19]}  g6 {[%clk 0:00:17]} 31. c4 {[%clk 0:00:19]}  dxc4+ {[%clk 0:00:15]} 32. bxc4 {[%clk 0:00:19]}  b5 {[%clk 0:00:15]} 33. c5 {[%clk 0:00:19]}  Nc4 {[%clk 0:00:15]} 34. Ke4 {[%clk 0:00:16]}  a5 {[%clk 0:00:15]} 35. Bc1 {[%clk 0:00:16]}  a4 {[%clk 0:00:15]} 36. Kd3 {[%clk 0:00:17]}  Kf6 {[%clk 0:00:13]} 37. Kc3 {[%clk 0:00:16]}  e5 {[%clk 0:00:13]} 38. g5+ {[%clk 0:00:15]}  Ke6 {[%clk 0:00:14]} 39. dxe5 {[%clk 0:00:15]}  Kxe5 {[%clk 0:00:14]} 40. f4+ {[%clk 0:00:14]}  Kd5 {[%clk 0:00:14]} 41. g4 {[%clk 0:00:14]}  Ke4 {[%clk 0:00:14]} 42. Kb4 {[%clk 0:00:12]}  a3 {[%clk 0:00:13]} 43. Bxa3 {[%clk 0:00:12]}  Nxa3 {[%clk 0:00:13]} 44. Kxa3 {[%clk 0:00:12]}  Kxf4 {[%clk 0:00:14]} 0-1


[Site "https://www.chess.com"]

[Event "Titled Tuesday Blitz June 13 Early 2023"]
[White "Xavier_mompel"]
[Black "Shuvalov, Evgenij"]
[BlackFideId "4187237"]
[WhiteElo "2194"]
[BlackElo "2080"]
[Result "0-1"]
[Round "1"]
[TimeControl "180+2"]
[Date "2023.06.13"]
[WhiteClock "0:00:00"]
[BlackClock "0:00:16"]
[Board "195"]

1. e4 {[%clk 0:02:57]}  e6 {[%clk 0:02:58]} 2. d4 {[%clk 0:02:55]}  d5 {[%clk 0:02:59]} 3. Nc3 {[%clk 0:02:55]}  Bb4 {[%clk 0:02:58]} 4. e5 {[%clk 0:02:55]}  c5 {[%clk 0:02:58]} 5. a3 {[%clk 0:02:56]}  Bxc3+ {[%clk 0:02:59]} 6. bxc3 {[%clk 0:02:56]}  Nc6 {[%clk 0:02:59]} 7. Qg4 {[%clk 0:02:54]}  g6 {[%clk 0:02:58]} 8. Nf3 {[%clk 0:02:45]}  Qa5 {[%clk 0:02:58]} 9. Bd2 {[%clk 0:02:44]}  c4 {[%clk 0:02:57]} 10. Be2 {[%clk 0:02:39]}  Bd7 {[%clk 0:02:57]} 11. O-O {[%clk 0:02:35]}  O-O-O {[%clk 0:02:47]} 12. Ng5 {[%clk 0:02:23]}  Rf8 {[%clk 0:02:43]} 13. Qf4 {[%clk 0:02:19]}  Kb8 {[%clk 0:02:25]} 14. Rfb1 {[%clk 0:02:07]}  h6 {[%clk 0:02:22]} 15. Nf3 {[%clk 0:02:02]}  Ka8 {[%clk 0:02:19]} 16. a4 {[%clk 0:02:00]}  Qd8 {[%clk 0:01:55]} 17. Ra2 {[%clk 0:01:44]}  f6 {[%clk 0:01:52]} 18. exf6 {[%clk 0:01:39]}  Nxf6 {[%clk 0:01:51]} 19. Rba1 {[%clk 0:01:05]}  Ne4 {[%clk 0:01:44]} 20. Qe3 {[%clk 0:01:05]}  g5 {[%clk 0:01:36]} 21. a5 {[%clk 0:01:00]}  a6 {[%clk 0:01:29]} 22. Rf1 {[%clk 0:00:47]}  Be8 {[%clk 0:01:18]} 23. h3 {[%clk 0:00:42]}  Bg6 {[%clk 0:01:15]} 24. Nh2 {[%clk 0:00:36]}  h5 {[%clk 0:01:05]} 25. f3 {[%clk 0:00:32]}  Ng3 {[%clk 0:00:48]} 26. Rb1 {[%clk 0:00:21]}  Bf5 {[%clk 0:00:23]} 27. Nf1 {[%clk 0:00:20]}  Nxe2+ {[%clk 0:00:21]} 28. Qxe2 {[%clk 0:00:21]}  g4 {[%clk 0:00:21]} 29. hxg4 {[%clk 0:00:10]}  hxg4 {[%clk 0:00:22]} 30. f4 {[%clk 0:00:09]}  Qh4 {[%clk 0:00:20]} 31. g3 {[%clk 0:00:07]}  Qh1+ {[%clk 0:00:19]} 32. Kf2 {[%clk 0:00:07]}  Be4 {[%clk 0:00:18]} 33. Ke1 {[%clk 0:00:02]}  Bf3 {[%clk 0:00:17]} 34. Qe3 {[%clk 0:00:00]}  Rh2 {[%clk 0:00:16]} 0-1


[Site "https://www.chess.com"]

[Event "Titled Tuesday Blitz June 13 Early 2023"]
[White "Jaivardhan Raj"]
[Black "Gavrilov, Maxim"]
[WhiteFideId "25744437"]
[BlackFideId "24271454"]
[WhiteElo "1772"]
[BlackElo "1969"]
[Result "0-1"]
[Round "1"]
[TimeControl "180+2"]
[Date "2023.06.13"]
[WhiteClock "0:00:05"]
[BlackClock "0:00:34"]
[Board "199"]

1. e4 {[%clk 0:02:58]}  c5 {[%clk 0:02:55]} 2. Nf3 {[%clk 0:02:58]}  d6 {[%clk 0:02:55]} 3. d4 {[%clk 0:02:57]}  cxd4 {[%clk 0:02:56]} 4. Qxd4 {[%clk 0:02:57]}  Nc6 {[%clk 0:02:55]} 5. Bb5 {[%clk 0:02:54]}  Bd7 {[%clk 0:02:55]} 6. Bxc6 {[%clk 0:02:53]}  Bxc6 {[%clk 0:02:56]} 7. Nc3 {[%clk 0:02:51]}  Nf6 {[%clk 0:02:57]} 8. Bg5 {[%clk 0:02:50]}  e6 {[%clk 0:02:54]} 9. O-O-O {[%clk 0:02:50]}  Be7 {[%clk 0:02:55]} 10. Qd2 {[%clk 0:02:48]}  O-O {[%clk 0:02:51]} 11. Rhe1 {[%clk 0:02:45]}  h6 {[%clk 0:02:36]} 12. Bxf6 {[%clk 0:02:43]}  Bxf6 {[%clk 0:02:37]} 13. Nd4 {[%clk 0:02:41]}  Qa5 {[%clk 0:02:23]} 14. Kb1 {[%clk 0:02:26]}  Rfd8 {[%clk 0:02:19]} 15. f3 {[%clk 0:02:21]}  Rac8 {[%clk 0:02:16]} 16. Nd5 {[%clk 0:01:58]}  Qxd2 {[%clk 0:02:11]} 17. Nxf6+ {[%clk 0:01:56]}  gxf6 {[%clk 0:02:12]} 18. Rxd2 {[%clk 0:01:56]}  Be8 {[%clk 0:02:05]} 19. Red1 {[%clk 0:01:51]}  Kf8 {[%clk 0:02:02]} 20. a3 {[%clk 0:01:38]}  Ke7 {[%clk 0:01:59]} 21. f4 {[%clk 0:01:35]}  Rc4 {[%clk 0:01:50]} 22. g4 {[%clk 0:01:28]}  Bd7 {[%clk 0:01:43]} 23. b3 {[%clk 0:01:07]}  Rc5 {[%clk 0:01:35]} 24. f5 {[%clk 0:01:03]}  Re5 {[%clk 0:01:28]} 25. Re1 {[%clk 0:00:54]}  Rg8 {[%clk 0:01:27]} 26. h3 {[%clk 0:00:50]}  d5 {[%clk 0:01:25]} 27. Rde2 {[%clk 0:00:43]}  dxe4 {[%clk 0:01:23]} 28. Rxe4 {[%clk 0:00:44]}  Rxe4 {[%clk 0:01:22]} 29. Rxe4 {[%clk 0:00:45]}  e5 {[%clk 0:01:19]} 30. Ne2 {[%clk 0:00:39]}  h5 {[%clk 0:01:08]} 31. Nc3 {[%clk 0:00:35]}  Bc6 {[%clk 0:01:06]} 32. Rc4 {[%clk 0:00:35]}  hxg4 {[%clk 0:01:05]} 33. h4 {[%clk 0:00:35]}  g3 {[%clk 0:01:02]} 34. Ne2 {[%clk 0:00:32]}  g2 {[%clk 0:01:02]} 35. Ng1 {[%clk 0:00:32]}  Rg3 {[%clk 0:00:46]} 36. h5 {[%clk 0:00:25]}  Re3 {[%clk 0:00:41]} 37. Kb2 {[%clk 0:00:10]}  Re1 {[%clk 0:00:39]} 38. Rxc6 {[%clk 0:00:06]}  bxc6 {[%clk 0:00:37]} 39. Nf3 {[%clk 0:00:06]}  Rf1 {[%clk 0:00:36]} 40. h6 {[%clk 0:00:05]}  Rxf3 {[%clk 0:00:36]} 41. h7 {[%clk 0:00:06]}  Rh3 {[%clk 0:00:36]} 42. h8=Q {[%clk 0:00:05]}  Rxh8 {[%clk 0:00:34]} 0-1


[Site "https://www.chess.com"]

[Event "Titled Tuesday Blitz June 13 Early 2023"]
[White "Osuna Vega, Enrique"]
[Black "Zavgorodniy, Sergiy"]
[WhiteFideId "2219549"]
[BlackFideId "14110148"]
[WhiteElo "2161"]
[BlackElo "2402"]
[Result "1-0"]
[Round "1"]
[TimeControl "180+2"]
[Date "2023.06.13"]
[WhiteClock "0:00:15"]
[BlackClock "0:01:16"]
[Board "203"]

1. e4 {[%clk 0:02:59]}  c6 {[%clk 0:02:59]} 2. Nf3 {[%clk 0:02:55]}  d5 {[%clk 0:02:59]} 3. Nc3 {[%clk 0:02:54]}  Bg4 {[%clk 0:02:59]} 4. h3 {[%clk 0:02:54]}  Bxf3 {[%clk 0:02:58]} 5. Qxf3 {[%clk 0:02:55]}  dxe4 {[%clk 0:02:59]} 6. Nxe4 {[%clk 0:02:52]}  Nd7 {[%clk 0:02:58]} 7. d4 {[%clk 0:02:52]}  Ngf6 {[%clk 0:02:58]} 8. Nxf6+ {[%clk 0:02:51]}  Nxf6 {[%clk 0:02:59]} 9. c3 {[%clk 0:02:50]}  e6 {[%clk 0:02:59]} 10. Bg5 {[%clk 0:02:48]}  Be7 {[%clk 0:02:59]} 11. Bd3 {[%clk 0:02:46]}  O-O {[%clk 0:02:59]} 12. O-O-O {[%clk 0:02:46]}  Nd5 {[%clk 0:02:59]} 13. Bd2 {[%clk 0:02:44]}  Bg5 {[%clk 0:02:56]} 14. Qh5 {[%clk 0:02:34]}  Bxd2+ {[%clk 0:02:55]} 15. Rxd2 {[%clk 0:02:35]}  g6 {[%clk 0:02:55]} 16. Qh6 {[%clk 0:02:30]}  Qf6 {[%clk 0:02:55]} 17. h4 {[%clk 0:02:29]}  Qf4 {[%clk 0:02:51]} 18. Qxf4 {[%clk 0:02:25]}  Nxf4 {[%clk 0:02:52]} 19. Bf1 {[%clk 0:02:25]}  h5 {[%clk 0:02:52]} 20. g3 {[%clk 0:02:25]}  Nd5 {[%clk 0:02:52]} 21. Bg2 {[%clk 0:02:24]}  Rfd8 {[%clk 0:02:51]} 22. Bxd5 {[%clk 0:02:21]}  cxd5 {[%clk 0:02:45]} 23. f3 {[%clk 0:02:17]}  Kg7 {[%clk 0:02:44]} 24. f4 {[%clk 0:02:04]}  b5 {[%clk 0:02:42]} 25. Re1 {[%clk 0:02:03]}  Rdc8 {[%clk 0:02:41]} 26. Kd1 {[%clk 0:02:01]}  a5 {[%clk 0:02:40]} 27. Ke2 {[%clk 0:02:01]}  b4 {[%clk 0:02:37]} 28. Rc2 {[%clk 0:01:55]}  Rc4 {[%clk 0:02:34]} 29. Rec1 {[%clk 0:01:54]}  Rac8 {[%clk 0:02:34]} 30. Kd2 {[%clk 0:01:54]}  Kf6 {[%clk 0:02:29]} 31. Kd3 {[%clk 0:01:53]}  Kf5 {[%clk 0:02:26]} 32. cxb4 {[%clk 0:01:49]}  Rxc2 {[%clk 0:02:06]} 33. Rxc2 {[%clk 0:01:49]}  Rxc2 {[%clk 0:02:06]} 34. Kxc2 {[%clk 0:01:50]}  axb4 {[%clk 0:02:06]} 35. a4 {[%clk 0:01:40]}  bxa3 {[%clk 0:02:06]} 36. bxa3 {[%clk 0:01:36]}  Kf6 {[%clk 0:01:57]} 37. Kb3 {[%clk 0:01:29]}  Ke7 {[%clk 0:01:56]} 38. Kb4 {[%clk 0:01:29]}  Kd6 {[%clk 0:01:56]} 39. Kb5 {[%clk 0:01:28]}  f6 {[%clk 0:01:54]} 40. a4 {[%clk 0:01:21]}  e5 {[%clk 0:01:51]} 41. fxe5+ {[%clk 0:01:18]}  fxe5 {[%clk 0:01:52]} 42. dxe5+ {[%clk 0:01:17]}  Kxe5 {[%clk 0:01:53]} 43. Kb4 {[%clk 0:00:52]}  d4 {[%clk 0:01:48]} 44. a5 {[%clk 0:00:36]}  Ke4 {[%clk 0:01:34]} 45. a6 {[%clk 0:00:35]}  d3 {[%clk 0:01:34]} 46. a7 {[%clk 0:00:35]}  d2 {[%clk 0:01:34]} 47. a8=Q+ {[%clk 0:00:35]}  Ke3 {[%clk 0:01:34]} 48. Qe8+ {[%clk 0:00:28]}  Kf2 {[%clk 0:01:34]} 49. Qd7 {[%clk 0:00:26]}  Ke2 {[%clk 0:01:22]} 50. Qe6+ {[%clk 0:00:24]}  Kf2 {[%clk 0:01:22]} 51. Qd5 {[%clk 0:00:20]}  Ke2 {[%clk 0:01:18]} 52. Qe4+ {[%clk 0:00:19]}  Kf2 {[%clk 0:01:18]} 53. Qd3 {[%clk 0:00:18]}  Ke1 {[%clk 0:01:15]} 54. Qe3+ {[%clk 0:00:17]}  Kd1 {[%clk 0:01:15]} 55. Kc3 {[%clk 0:00:15]}  Kc1 {[%clk 0:01:15]} 56. Qxd2+ {[%clk 0:00:15]}  Kb1 {[%clk 0:01:16]} 57. Qb2# {[%clk 0:00:15]} 1-0


[Site "https://www.chess.com"]

[Event "Titled Tuesday Blitz June 13 Early 2023"]
[White "Skawinski, Arkadiusz"]
[Black "Novikova, Margarita"]
[WhiteFideId "1126415"]
[BlackFideId "14109689"]
[WhiteElo "2218"]
[BlackElo "2013"]
[Result "1-0"]
[Round "1"]
[TimeControl "180+2"]
[Date "2023.06.13"]
[WhiteClock "0:00:25"]
[BlackClock "0:00:00"]
[Board "204"]

1. e4 {[%clk 0:02:57]}  d5 {[%clk 0:02:59]} 2. exd5 {[%clk 0:02:56]}  Qxd5 {[%clk 0:03:00]} 3. Nc3 {[%clk 0:02:56]}  Qd6 {[%clk 0:02:58]} 4. d4 {[%clk 0:02:56]}  Nf6 {[%clk 0:02:58]} 5. Nf3 {[%clk 0:02:56]}  c6 {[%clk 0:02:58]} 6. g3 {[%clk 0:02:56]}  Bg4 {[%clk 0:02:57]} 7. Bg2 {[%clk 0:02:56]}  e6 {[%clk 0:02:56]} 8. O-O {[%clk 0:02:56]}  Qc7 {[%clk 0:02:56]} 9. h3 {[%clk 0:02:55]}  Bh5 {[%clk 0:02:55]} 10. g4 {[%clk 0:02:55]}  Bg6 {[%clk 0:02:55]} 11. Ne5 {[%clk 0:02:55]}  Bd6 {[%clk 0:02:54]} 12. Qe2 {[%clk 0:02:54]}  Nbd7 {[%clk 0:02:51]} 13. Re1 {[%clk 0:02:52]}  O-O-O {[%clk 0:02:39]} 14. h4 {[%clk 0:02:44]}  h5 {[%clk 0:02:04]} 15. Nxg6 {[%clk 0:02:43]}  fxg6 {[%clk 0:02:05]} 16. g5 {[%clk 0:02:39]}  Ng4 {[%clk 0:01:54]} 17. Ne4 {[%clk 0:02:23]}  Bf4 {[%clk 0:01:39]} 18. f3 {[%clk 0:01:21]}  Bxc1 {[%clk 0:01:34]} 19. fxg4 {[%clk 0:01:21]}  Bxb2 {[%clk 0:01:31]} 20. Rad1 {[%clk 0:01:21]}  Qf4 {[%clk 0:01:21]} 21. Rf1 {[%clk 0:01:05]}  Qxg4 {[%clk 0:01:14]} 22. Qxg4 {[%clk 0:01:05]}  hxg4 {[%clk 0:01:14]} 23. Nd6+ {[%clk 0:01:06]}  Kc7 {[%clk 0:01:13]} 24. Nf7 {[%clk 0:01:06]}  Rxh4 {[%clk 0:01:10]} 25. Nxd8 {[%clk 0:01:07]}  Kxd8 {[%clk 0:01:11]} 26. Rf7 {[%clk 0:01:07]}  g3 {[%clk 0:01:08]} 27. Kf1 {[%clk 0:01:01]}  Ke8 {[%clk 0:00:59]} 28. Rxg7 {[%clk 0:00:59]}  Rf4+ {[%clk 0:00:54]} 29. Ke1 {[%clk 0:00:50]}  Rf2 {[%clk 0:00:50]} 30. Rd3 {[%clk 0:00:38]}  Rxg2 {[%clk 0:00:47]} 31. Rxg6 {[%clk 0:00:37]}  Nf8 {[%clk 0:00:41]} 32. Rg7 {[%clk 0:00:36]}  Ba3 {[%clk 0:00:32]} 33. Rxa3 {[%clk 0:00:33]}  Rh2 {[%clk 0:00:29]} 34. Rxa7 {[%clk 0:00:24]}  Rh1+ {[%clk 0:00:18]} 35. Ke2 {[%clk 0:00:24]}  Rh2+ {[%clk 0:00:17]} 36. Kf3 {[%clk 0:00:24]}  Rf2+ {[%clk 0:00:17]} 37. Kxg3 {[%clk 0:00:25]}  Rf7 {[%clk 0:00:18]} 38. Rxf7 {[%clk 0:00:24]}  Kxf7 {[%clk 0:00:19]} 39. Rxb7+ {[%clk 0:00:25]}  Kg6 {[%clk 0:00:00]} 40. Kg4 {[%clk 0:00:25]} 1-0


[Site "https://www.chess.com"]

[Event "Titled Tuesday Blitz June 13 Early 2023"]
[White "Nikulina, Alena"]
[Black "Yaniuk, Volodymyr"]
[WhiteFideId "4172051"]
[BlackFideId "14133083"]
[WhiteElo "1608"]
[BlackElo "2141"]
[Result "1/2-1/2"]
[Round "1"]
[TimeControl "180+2"]
[Date "2023.06.13"]
[WhiteClock "0:00:08"]
[BlackClock "0:01:19"]
[Board "207"]

1. e4 {[%clk 0:02:57]}  e5 {[%clk 0:02:59]} 2. Nf3 {[%clk 0:02:57]}  Nc6 {[%clk 0:02:59]} 3. Bb5 {[%clk 0:02:57]}  Nf6 {[%clk 0:02:59]} 4. O-O {[%clk 0:02:56]}  Nxe4 {[%clk 0:03:00]} 5. Re1 {[%clk 0:02:55]}  Nd6 {[%clk 0:03:00]} 6. a4 {[%clk 0:02:51]}  Be7 {[%clk 0:02:58]} 7. d4 {[%clk 0:02:35]}  e4 {[%clk 0:02:53]} 8. Ne5 {[%clk 0:02:02]}  O-O {[%clk 0:02:52]} 9. Nc3 {[%clk 0:01:51]}  f5 {[%clk 0:02:47]} 10. f4 {[%clk 0:01:38]}  Bf6 {[%clk 0:02:39]} 11. Nd5 {[%clk 0:01:20]}  a6 {[%clk 0:02:35]} 12. Be2 {[%clk 0:01:16]}  Ne7 {[%clk 0:02:31]} 13. Ne3 {[%clk 0:01:02]}  Ne8 {[%clk 0:02:26]} 14. d5 {[%clk 0:00:51]}  d6 {[%clk 0:02:22]} 15. N5c4 {[%clk 0:00:50]}  g6 {[%clk 0:02:22]} 16. c3 {[%clk 0:00:47]}  Bg7 {[%clk 0:02:21]} 17. g4 {[%clk 0:00:44]}  fxg4 {[%clk 0:02:16]} 18. Nxg4 {[%clk 0:00:44]}  Bf5 {[%clk 0:02:12]} 19. Be3 {[%clk 0:00:41]}  Nf6 {[%clk 0:02:12]} 20. Nxf6+ {[%clk 0:00:39]}  Bxf6 {[%clk 0:02:13]} 21. Bd4 {[%clk 0:00:39]}  Qd7 {[%clk 0:02:12]} 22. Bxf6 {[%clk 0:00:38]}  Rxf6 {[%clk 0:02:13]} 23. Qd4 {[%clk 0:00:38]}  Raf8 {[%clk 0:02:12]} 24. Rad1 {[%clk 0:00:37]}  R6f7 {[%clk 0:02:03]} 25. Ne3 {[%clk 0:00:37]}  Rg7 {[%clk 0:02:03]} 26. Kh1 {[%clk 0:00:36]}  Rgf7 {[%clk 0:01:51]} 27. Rg1 {[%clk 0:00:35]}  a5 {[%clk 0:01:47]} 28. c4 {[%clk 0:00:25]}  b6 {[%clk 0:01:46]} 29. b3 {[%clk 0:00:25]}  Rg7 {[%clk 0:01:43]} 30. Rdf1 {[%clk 0:00:23]}  Rff7 {[%clk 0:01:43]} 31. Ng4 {[%clk 0:00:17]}  Bxg4 {[%clk 0:01:42]} 32. Bxg4 {[%clk 0:00:18]}  Nf5 {[%clk 0:01:41]} 33. Bxf5 {[%clk 0:00:18]}  gxf5 {[%clk 0:01:39]} 34. Qe3 {[%clk 0:00:13]}  Qe7 {[%clk 0:01:36]} 35. Rxg7+ {[%clk 0:00:12]}  Rxg7 {[%clk 0:01:37]} 36. Rg1 {[%clk 0:00:12]}  Rxg1+ {[%clk 0:01:36]} 37. Qxg1+ {[%clk 0:00:13]}  Qg7 {[%clk 0:01:36]} 38. Qe3 {[%clk 0:00:13]}  Qa1+ {[%clk 0:01:35]} 39. Kg2 {[%clk 0:00:13]}  Qb2+ {[%clk 0:01:32]} 40. Kh3 {[%clk 0:00:13]}  Qf6 {[%clk 0:01:32]} 41. Kg2 {[%clk 0:00:13]}  Kf7 {[%clk 0:01:32]} 42. Kh3 {[%clk 0:00:11]}  Qg6 {[%clk 0:01:32]} 43. Qf2 {[%clk 0:00:07]}  e3 {[%clk 0:01:29]} 44. Qf3 {[%clk 0:00:06]}  e2 {[%clk 0:01:28]} 45. Qxe2 {[%clk 0:00:05]}  Qh6+ {[%clk 0:01:28]} 46. Kg3 {[%clk 0:00:05]}  Qg6+ {[%clk 0:01:27]} 47. Kh3 {[%clk 0:00:04]}  Qh6+ {[%clk 0:01:27]} 48. Kg3 {[%clk 0:00:04]}  Qg7+ {[%clk 0:01:27]} 49. Kf3 {[%clk 0:00:05]}  Qc3+ {[%clk 0:01:27]} 50. Qe3 {[%clk 0:00:04]}  Qxe3+ {[%clk 0:01:25]} 51. Kxe3 {[%clk 0:00:04]}  Kg6 {[%clk 0:01:26]} 52. Kf3 {[%clk 0:00:05]}  Kh5 {[%clk 0:01:23]} 53. Kg3 {[%clk 0:00:05]}  h6 {[%clk 0:01:22]} 54. h4 {[%clk 0:00:05]}  Kg6 {[%clk 0:01:23]} 55. Kf3 {[%clk 0:00:06]}  Kf6 {[%clk 0:01:20]} 56. Ke3 {[%clk 0:00:06]}  Ke7 {[%clk 0:01:17]} 57. Kd4 {[%clk 0:00:06]}  Kf6 {[%clk 0:01:17]} 58. Ke3 {[%clk 0:00:07]}  Kg6 {[%clk 0:01:18]} 59. Kf3 {[%clk 0:00:07]}  Kh5 {[%clk 0:01:19]} 60. Kg3 {[%clk 0:00:08]}  Kg6 {[%clk 0:01:19]} 61. Kf3 {[%clk 0:00:08]} 1/2-1/2


[Site "https://www.chess.com"]